Cogmind - Beta 14 *** ADVENTURER MODE // 2024.08.24 @ 22:57:59 // Winter2019/RPGLIKE Player: DeepestRoots Result: Destroyed by Y-45 Defender with Beam Rifle Performance ------------- Evolutions (2) 1000 Regions Visited (5) 1000 Robots Destroyed (63) 315 Value Destroyed (1346) 1346 Prototype IDs (1) 20 Alien Tech Used (0) 0 Bonus (144) 144 TOTAL SCORE: 3825 Bonus ------- High Alert Combat Kills 85 Follower Combat Kills 59 Cogmind --------- Core Integrity 0/600 Matter 213/300 Energy 86/160 System Corruption 0% Temperature Warm (125) Movement Hovering (180) Ox2 Location -8/Materials Parts ------- > --- POWER (1) -------- Light Nuclear Core > --- PROPULSION (3) --- Hover Unit Hover Unit > --- UTILITY (2) ------ Cooling System Seismic Detector > --- WEAPON (2) ------- Heavy Particle Cannon Light Cannon > --- INVENTORY (2) ---- EMP Blaster Mining Laser Peak State ------------ > --- POWER ------------ Improved Ion Engine > --- PROPULSION ------- Hover Unit Hover Unit Hover Unit > --- UTILITY ---------- Decoy Drone Bay > --- WEAPON ----------- Particle Cannon Light Cannon > --- INVENTORY -------- EMP Blaster Mining Laser [Rating: 22] Favorites ----------- Power Ion Engine Engine Ion Engine Power Core Light Nuclear Core Propulsion Hover Unit Wheel Wheel Hover Unit Hover Unit Utility Seismic Detector Device Seismic Detector Storage Small Matter Pod Protection Light Armor Plating Weapon Assault Rifle Energy Cannon Particle Cannon Ballistic Gun Assault Rifle Ballistic Cannon Light Cannon Launcher EMP Blaster Build | -11 -10 -10 -10 -9 -8 ------- Run | Yrd Mat Min Exi Min Mat Slots Evolved 4 | 3 1 . . . . Power . | . . . . . . Propulsion 2 | 1 1 . . . . Utility 1 | 1 . . . . . Weapon 1 | 1 . . . . . Parts Attached 28 | 7 7 . . 6 8 Power 4 | 1 . . . 1 2 Engine 3 | 1 . . . 1 1 Core 1 | . . . . . 1 Reactor . | . . . . . . Propulsion 5 | 2 3 . . . . Treads . | . . . . . . Leg . | . . . . . . Wheel 2 | 2 . . . . . Hover 3 | . 3 . . . . Flight . | . . . . . . Utility 10 | 2 3 . . 4 1 Device 5 | 1 1 . . 2 1 Storage 1 | 1 . . . . . Processor . | . . . . . . Hackware . | . . . . . . Protection 4 | . 2 . . 2 . Artifact . | . . . . . . Weapon 9 | 2 1 . . 1 5 Energy Gun . | . . . . . . Energy Cannon 2 | . . . . 1 1 Ballistic Gun 2 | 2 . . . . . Ballistic Cannon 3 | . 1 . . . 2 Launcher 2 | . . . . . 2 Special Weapon . | . . . . . . Impact Weapon . | . . . . . . Slashing Weapon . | . . . . . . Piercing Weapon . | . . . . . . Special Melee Weapon . | . . . . . . Unidentified Prototypes 1 | . . . . 1 . Parts Lost 3 | . . . . . 3 Power 1 | . . . . . 1 Propulsion 1 | . . . . . 1 Utility 1 | . . . . . 1 Weapon . | . . . . . . Highest Loss Streak 1 | . . . . . 1 To Critical Strikes . | . . . . . . Average Slot Usage (%) 99 | . 99 100 100 99 96 Engine 11 | . 12 12 12 12 4 Wheel 2 | . 6 . . . . Hover 34 | . 27 37 37 37 36 Device 12 | . 12 12 12 12 12 Protection 11 | . 11 12 12 12 10 Energy Cannon 3 | . . . . 7 12 Ballistic Gun 10 | . 18 12 12 4 . Ballistic Cannon 9 | . 6 12 12 12 9 Peak Build Rating 22 | 9 9 8 8 22 13 Average Rating 8 | 5 7 8 8 9 11 On Entrance 7 | . 9 8 8 8 10 Naked Turns . | . . . . . . Heaviest Build 22 | 11 14 14 14 18 22 Greatest Support 20 | 20 20 18 18 18 18 Greatest Overweight (x) 2 | . 1 . . . 2 Average Overweight (x) . | . . . . . . Largest Inventory Capacity 2 | 1 1 1 1 2 2 Average Capacity 1 | . 1 1 1 1 2 Most Carried 2 | 1 1 1 1 2 2 Average Carried 1 | . 1 1 1 1 2 Final Capacity 2 | 1 1 1 1 2 2 Final Carried 2 | 1 1 1 1 2 2 Class Distribution -------------------- 70% | Mutant 29% | Scavenger-Mutant Dominant Class ---------------- Mutant | -10/Materials Mutant | -10/Mines Mutant | -10/Exiles Scavenger-Mutant | -9/Mines Scavenger-Mutant | -8/Materials Resources | -11 -10 -10 -10 -9 -8 ----------- Run | Yrd Mat Min Exi Min Mat Matter Collected 1171 | 367 190 87 . 378 149 Remotely . | . . . . . . Salvage Created 1633 | 229 112 100 . 631 561 Parts 121 | 15 20 22 . 39 25 Haulers Intercepted . | . . . . . . Recyclers Shooed 3 | 1 . . . 1 1 Parts Field Recycled . | . . . . . . Retrieved Matter . | . . . . . . Parts Self-Destructed . | . . . . . . Prevented . | . . . . . . Kills | -11 -10 -10 -10 -9 -8 ------- Run | Yrd Mat Min Exi Min Mat Combat Hostiles Destroyed 47 | . 7 8 . 19 13 Guns 15 | . 6 5 . 4 . Cannons 25 | . 1 3 . 15 6 AOE 6 | . . . . . 6 Classes Destroyed 10 | 3 3 . . 3 1 Worker 3 | 2 . . . 1 . Builder 2 | . . . . 2 . Tunneler 9 | 5 . 1 . 3 . Recycler 1 | 1 . . . . . Watcher 3 | . 3 . . . . Swarmer 21 | . 6 8 . 4 3 Grunt 19 | . 1 . . 11 7 Brawler 1 | . . . . . 1 Sentry 4 | . . . . 2 2 Assembled 2 | . . . . 2 . Best Kill Streak 9 | 6 3 4 . 9 6 Combat Bots Only 6 | . 3 3 . 4 6 Max Kills in Single Turn 3 | 1 1 1 . 2 3 Gunslinging . | . . . . . . Exploded 3 | . . . . . 3 Melee . | . . . . . . Uniques/NPCs Destroyed . | . . . . . . Combat | -11 -10 -10 -10 -9 -8 -------- Run | Yrd Mat Min Exi Min Mat Hostile Shots Fired 173 | . 20 27 . 33 93 Missed 50 | . 7 11 . 10 22 Damage Taken 1390 | . 85 96 . 243 966 Core 1021 | . 64 57 . 180 720 Absorbed by Shields . | . . . . . . Redirected to Core 779 | . 34 49 . 142 554 Ignored by Resistances 413 | . 27 32 . 72 282 Regen/Repaired (Parts) 7 | . 7 . . . . Core Remaining (%) 100 | 100 . . . 100 . Volleys Fired 139 | 12 19 13 . 59 36 Largest 2 | 2 2 2 . 2 2 Hottest 110 | 40 55 55 . 103 110 Shots Fired 257 | 24 38 26 . 115 54 Gun 99 | 24 32 13 . 30 . Cannon 148 | . 6 13 . 85 44 Launcher 10 | . . . . . 10 Special . | . . . . . . Kinetic 197 | 24 38 26 . 86 23 Thermal 50 | . . . . 29 21 Explosive . | . . . . . . Electromagnetic 10 | . . . . . 10 Robot Hit Streak 27 | 12 27 4 . 20 13 Robot Miss Streak 3 | 1 1 2 . 2 3 Penetration Max . | . . . . . . Secondary Targets . | . . . . . . Shots Hit Robots 160 | 17 27 13 . 71 32 Core Hits 86 | 9 11 10 . 31 25 Critical Kills 1 | . . . . . 1 Critical Parts Destroyed . | . . . . . . Critical Strikes 5 | . . . . 1 4 Meltdown 1 | . . . . . 1 Blast 4 | . . . . 1 3 Melee Attacks . | . . . . . . Impact . | . . . . . . Slashing . | . . . . . . Piercing . | . . . . . . Sneak Attacks . | . . . . . . Combat Hostiles . | . . . . . . Follow-up Attacks . | . . . . . . Damage Inflicted 3568 | 215 364 201 . 1344 1444 Guns 892 | 215 328 110 . 239 . Cannons 1901 | . 36 91 . 1105 669 Explosions 775 | . . . . . 775 Melee . | . . . . . . Ramming . | . . . . . . Kinetic 1868 | 215 364 201 . 798 290 Thermal 1271 | . . . . 546 725 Explosive . | . . . . . . Electromagnetic 429 | . . . . . 429 Impact . | . . . . . . Slashing . | . . . . . . Piercing . | . . . . . . Highest Corruption . | . . . . . . Average Corruption . | . . . . . . Corruption Purged . | . . . . . . Corruption Blocked . | . . . . . . Overload Shots . | . . . . . . Overflow Damage 90 | . . . . 12 78 Projectiles 12 | . . . . 12 . Explosions 78 | . . . . . 78 Melee . | . . . . . . Knockbacks 11 | . 1 . . 7 3 Impact . | . . . . . . Kinetic 11 | . 1 . . 7 3 Secondary . | . . . . . . Self-Inflicted Damage 149 | . . . . . 149 Shots 7 | . . . . . 7 Rammed . | . . . . . . Targets Rammed . | . . . . . . Kicked . | . . . . . . Crushed . | . . . . . . Highest Temperature 521 | . 48 40 . 366 521 Average Temperature 122 | . 16 18 . 113 207 Received Heat Transfer 684 | . 18 . . 54 612 Effects 16 | . . . . 3 13 Shutdowns 3 | . . . . . 3 Interference 4 | . . . . 3 1 Matter Decay 1 | . . . . . 1 Short Circuit 1 | . . . . . 1 Damage (minor) 1 | . . . . . 1 Damage (major) 6 | . . . . . 6 Siege Activations . | . . . . . . Robots Corrupted . | . . . . . . Combat Hostiles . | . . . . . . Parts Fried 1 | . . . . . 1 Impact Corruptions . | . . . . . . Robots Melted 1 | . . . . . 1 Combat Hostiles 1 | . . . . . 1 Parts Melted . | . . . . . . Heat Transferred 1780 | . . . . 925 855 Parts Sabotaged . | . . . . . . Parts Stolen . | . . . . . . Parts Stripped . | . . . . . . Power Chain Reactions 3 | . . . . . 3 Alert | -11 -10 -10 -10 -9 -8 ------- Run | Yrd Mat Min Exi Min Mat Peak Influence 757 | 40 218 269 . 329 757 Initial 80 | . 22 35 . . 80 Average 170 | 21 106 210 . 163 366 Maximum Alert Level 3 | . 1 1 . 1 3 Low Security (%) 64 | 100 77 57 . 64 22 Level 1 29 | . 22 42 . 35 27 Level 2 5 | . . . . . 44 Level 3 . | . . . . . 4 Level 4 . | . . . . . . Level 5 . | . . . . . . High Security . | . . . . . . Max Security . | . . . . . . Squads Dispatched 3 | . . . . . 3 Investigation 2 | . . . . . 2 Extermination . | . . . . . . Reinforcement 1 | . . . . . 1 Assault . | . . . . . . Garrison . | . . . . . . Intercept . | . . . . . . Searches Triggered . | . . . . . . Construction Impeded . | . . . . . . Haulers Reinforced . | . . . . . . Active Scanning Responses . | . . . . . . Cargo Convoy Interrupts . | . . . . . . Stealth | -11 -10 -10 -10 -9 -8 --------- Run | Yrd Mat Min Exi Min Mat Distress Signals 1 | . . . . . 1 Communications Jammed . | . . . . . . Distress Signals . | . . . . . . Times Spotted 61 | . 9 8 . 18 26 Peak Tracking Total 9 | . 3 3 . 4 9 Tactical Retreats 10 | . 1 . . 3 6 Traps | -11 -10 -10 -10 -9 -8 ------- Run | Yrd Mat Min Exi Min Mat Traps Triggered 1 | . . . . . 1 Indirectly . | . . . . . . Trap Hack Attempts . | . . . . . . Triggered . | . . . . . . Disarmed . | . . . . . . Reprogrammed . | . . . . . . Reused . | . . . . . . Traps Extracted . | . . . . . . Installed 3 | . . 3 . . . Triggered 1 | . . . . . 1 Machines | -11 -10 -10 -10 -9 -8 ---------- Run | Yrd Mat Min Exi Min Mat Machines Disabled 4 | . . . . . 4 Max in Single Turn 2 | . . . . . 2 Machines Repaired . | . . . . . . Machines Dismantled . | . . . . . . Machines Sabotaged . | . . . . . . Overloaded Fab Kills . | . . . . . . Hacking | -11 -10 -10 -10 -9 -8 --------- Run | Yrd Mat Min Exi Min Mat Machines Accessed 10 | . 8 . . 1 1 Terminals 8 | . 7 . . . 1 Fabricators . | . . . . . . Repair Stations 1 | . 1 . . . . Recycling Units . | . . . . . . Scanalyzers . | . . . . . . Garrison Access . | . . . . . . Total Hacks 34 | . 31 . . 1 2 Successful 21 | . 19 . . 1 1 Failed 12 | . 11 . . . 1 Catastrophic 2 | . 2 . . . . Database Lockouts 1 | . 1 . . . . Manual 19 | . 17 . . . 2 Terminals 31 | . 29 . . . 2 Fabricators . | . . . . . . Repair Stations 2 | . 2 . . . . Recycling Units . | . . . . . . Scanalyzers . | . . . . . . Garrison Access . | . . . . . . Terminal Hacks 12 | . 11 . . 1 . Robot Analysis 2 | . 2 . . . . Open Door 1 | . . . . 1 . Branch Access Points 1 | . 1 . . . . Locate Traps 3 | . 3 . . . . Dispatch Records 1 | . 1 . . . . Hauler Manifests 1 | . 1 . . . . Registered Prototypes 1 | . 1 . . . . Zone Layout 2 | . 2 . . . . Fabricator Hacks . | . . . . . . Repair Station Hacks 2 | . 2 . . . . Scan Component 1 | . 1 . . . . Repair 1 | . 1 . . . . Recycling Unit Hacks . | . . . . . . Scanalyzer . | . . . . . . Garrison Access Hacks . | . . . . . . Unauthorized Hacks 7 | . 6 . . . 1 Terminals 7 | . 6 . . . 1 Track 1 | . 1 . . . . Botnet 4 | . 3 . . . 1 Disrupt 2 | . 2 . . . . Fabricators . | . . . . . . Repair Stations . | . . . . . . Recycling Units . | . . . . . . Scanalyzers . | . . . . . . Garrison Access . | . . . . . . Data Cores Recovered . | . . . . . . Used . | . . . . . . Hacking Detections 8 | . 7 . . . 1 Full Trace Events 1 | . 1 . . . . Feedback Events . | . . . . . . Feedback Blocked . | . . . . . . Robot Schematics Acquired . | . . . . . . Robots Built . | . . . . . . Authchips . | . . . . . . Time . | . . . . . . Total Robot Build Rating . | . . . . . . Part Schematics Acquired . | . . . . . . Parts Built . | . . . . . . Authchips . | . . . . . . Time . | . . . . . . Total Part Build Rating . | . . . . . . Parts Repaired 1 | . 1 . . . . Time 26 | . 26 . . . . Parts Recycled . | . . . . . . Recycled Matter . | . . . . . . Retrieved Matter . | . . . . . . Retrieved Components . | . . . . . . Parts Scanalyzed . | . . . . . . Part Schematics Acquired . | . . . . . . Parts Damaged . | . . . . . . Bothacking | -11 -10 -10 -10 -9 -8 ------------ Run | Yrd Mat Min Exi Min Mat Used RIF Installer . | . . . . . . Robots Hacked . | . . . . . . Non-combat . | . . . . . . Combat . | . . . . . . Robot Hacks Applied . | . . . . . . Relay Couplers Released . | . . . . . . Fabnet Peak Effective % . | . . . . . . Robots Rewired . | . . . . . . Allies Hacked . | . . . . . . Hacks Repelled . | . . . . . . Allies | -11 -10 -10 -10 -9 -8 -------- Run | Yrd Mat Min Exi Min Mat Total Allies 3 | . . 3 . . . Largest Group 3 | . . 3 3 3 . Highest-Rated Group 40 | . . 40 40 40 . Highest-Rated Ally 16 | . . 16 16 16 . Total Orders . | . . . . . . Ally Attacks 18 | . . 3 . 15 . Total Damage 208 | . . 23 . 185 . Kills 3 | . . 1 . 2 . Allies Corrupted . | . . . . . . Allies Melted . | . . . . . . Intel | -11 -10 -10 -10 -9 -8 ------- Run | Yrd Mat Min Exi Min Mat Robot Analysis Total 2 | . 2 . . . . Derelict Logs Recovered 3 | . . 1 . 2 . Drone Launches . | . . . . . . Drone Recoveries . | . . . . . . Exploration | -11 -10 -10 -10 -9 -8 ------------- Run | Yrd Mat Min Exi Min Mat Turns Passed 2364 | 146 703 419 147 673 276 Spaces Moved 2798 | 101 926 591 200 727 253 Core 6 | 6 . . . . . Treads . | . . . . . . Legs . | . . . . . . Wheels 251 | 95 156 . . . . Hover 2541 | . 770 591 200 727 253 Flight . | . . . . . . Fastest Speed 50 | 50 52 52 52 52 52 Average Speed 55 | 78 57 52 52 52 57 Slowest Speed 180 | 80 116 52 52 52 180 Overloaded Moves . | . . . . . . Propulsion Burnouts . | . . . . . . Robots Hopped . | . . . . . . Cave-ins Triggered . | . . . . . . Exploration Rate (%) 64 | 4 99 93 59 95 36 Regions Visited 5 Branch Regions 3 Pre-discovered Areas . | . . . . . . Known Exits Taken 2 | . 1 . . 1 . Unknown Exits Taken 3 | 1 . 1 1 . . Scrap Searched 2 | . . 1 . 1 . Spaces Dug 3 | . . . . . 3 Terrain Destroyed 53 | . . . . . 53 Melee . | . . . . . . Projectile 3 | . . . . . 3 AOE 50 | . . . . . 50 Terrain Rammed . | . . . . . . Walls Destroyed . | . . . . . . Machines Disabled . | . . . . . . Actions | -11 -10 -10 -10 -9 -8 --------- Run | Yrd Mat Min Exi Min Mat Total 3349 | 140 1057 676 242 907 327 Wait 345 | 20 96 69 43 93 24 Move 2793 | 100 925 590 199 726 253 Hop . | . . . . . . Pick Up 2 | 1 . . . 1 . Fast Attach 20 | 7 7 . . 4 2 Attach . | . . . . . . Detach . | . . . . . . Swap 8 | . . . . 2 6 Drop 12 | . 5 . . 6 1 Fire 139 | 12 19 13 . 59 36 Melee . | . . . . . . Ram . | . . . . . . Kick . | . . . . . . Crush . | . . . . . . Escape Stasis . | . . . . . . Rewire . | . . . . . . Trap 3 | . . 3 . . . Miscellaneous 27 | . 5 1 . 16 5 Route ------- -11/Scrapyard -10/Materials (discovered 5 exits: [*Mat x3] / *Min / [*Sub]) -10/Mines (discovered 3 exits: [*Mat x2] / [*Exi]) -10/Exiles -9/Mines -8/Materials (discovered 2 exits: [*Fac x2]) History --------- Turn | Location | Event 2 | -11/Scrapyard | Discovered new exit (range 16) 10 | -11/Scrapyard | Upgraded with Propulsion slot (x1) 10 | -11/Scrapyard | Upgraded with Utility slot (x1) 10 | -11/Scrapyard | Upgraded with Weapon slot (x1) 147 | -11/Scrapyard | Entered Materials 207 | -10/Materials | Central database locked down 279 | -10/Materials | Discovered new exit (range 10) 314 | -10/Materials | Build established: Mutant 337 | -10/Materials | Upgraded with Propulsion slot (x1) 358 | -10/Materials | Identified exit to Mines 502 | -10/Materials | Discovered new exit (range 16) 637 | -10/Materials | Discovered new exit (range 15) 704 | -10/Materials | Discovered new exit (range 13) 765 | -10/Materials | Repaired Lgt. Armor Plating 801 | -10/Materials | Discovered new exit (range 10) 850 | -10/Materials | Entered Mines 852 | -10/Mines | Reached level 2 885 | -10/Mines | Discovered new exit (range 8) 925 | -10/Mines | Learned Materials terminal intel 947 | -10/Mines | Found a hidden stash of uninstalled traps 1050 | -10/Mines | Assisted by bots powering up and referring to "LRC-V3" 1136 | -10/Mines | Discovered new exit (range 3) 1240 | -10/Mines | Deemed a non-threat by the Exiles lab entrance 1240 | -10/Mines | Discovered new exit (range 5) 1269 | -10/Mines | Entered Exiles 1269 | -10/Exiles | Accompanied by 3 allies 1283 | -10/Exiles | Met 8R-AWN 1291 | -10/Exiles | Met EX-HEX 1306 | -10/Exiles | Met EX-BIN 1345 | -10/Exiles | Met EX-DEC 1366 | -10/Exiles | Discovered new exit (range 14) 1416 | -10/Exiles | Entered Mines 1416 | -9/Mines | Accompanied by 3 allies 1417 | -9/Mines | Reached level 3 1479 | -9/Mines | Excavation squad dispatched 1479 | -9/Mines | A large section of the Mines collapsed 1519 | -9/Mines | Learned Materials stockpile data 1593 | -9/Mines | Identified exit to Materials 1670 | -9/Mines | Found the Drone Emporium 1673 | -9/Mines | Found Prototype Device 1673 | -9/Mines | Identified Decoy Drone Bay 1702 | -9/Mines | Reached level 4 1729 | -9/Mines | Excavation squad dispatched 1945 | -9/Mines | Build established: Scavenger-Mutant 2089 | -9/Mines | Entered Materials 2091 | -8/Materials | Loaded intel: 12 terminal locations 2091 | -8/Materials | Reached level 5 2091 | -8/Materials | Reached level 6 2091 | -8/Materials | Reached level 7 2174 | -8/Materials | Discovered new exit (range 9) 2287 | -8/Materials | Discovered new exit (range 16) 2318 | -8/Materials | Core integrity fell below 50% 2320 | -8/Materials | Reached level 8 2325 | -8/Materials | Core integrity fell below 20% 2365 | -8/Materials | Destroyed by Y-45 Defender with Beam Rifle Last Messages --------------- 02325_ Overheating: Hover Unit damaged (-13). 02325_ Overheating: Hvy. Particle Cannon damaged (-50). 02325_ Overheating: EMP Blaster damaged (-11). 02326_ Acquired 15 matter. 02328_ U-05 Engineer lays Concrete. 02329_ Overheating: Hover Unit damaged (-9). 02329_ Overheating: EMP Blaster damaged (-19). 02329_ G-47 Trooper IFF system glitched. 02329_ U-05 Engineer builds a Wall. 02337_ W-25 Informer distress signal alerts nearby ally. 02338_ S-10 Pest destroyed. 02338_ Integration Channel disabled. 02338_ Destroyed Flight Unit. 02338_ Door malfunctions. 02352_ Hover Unit destroyed. 02352_ S-10 Pest destroyed. 02353_ Hover Unit broken. 02353_ Overheating: Short circuit. 02355_ Acquired Cooling System. 02358_ G-47 Trooper destroyed. Map ----- +----------------------------------------------------+ | # #????????????????????????#"" """"" " | | " # #????????????????????????### """"" " | | " # #??????????????????????????# """"" = " | | # ###########?????+##????????# """ ? | | # ???????? ????? | | / ???????? ] ???????? " | | %=# ?????? ?????????? | | % %!### #######+#### #??????#######?????????? | | % % #? #??????????# ###+#########??????????? | | "#??+#??????????# # T ##?????????? | | # ?????????# # #?????????? | | #????? #????????# + ???????????? | | ! T#???????????????# # " " ???????????? | | "#???????????????# # " % ""?????????????? | | #???????????????# # [*=???????????????? | | #???????????????# # [?????????????????? | | #+######+############ ###/##########?????????? | | ???? | | ######??????????? | | gu ##??????????????? | | ##################### #####g###;#??????????????? | | ????????????????????# # *[%Y #??????????????? | | ????????????????????# # #??????????????? | | ????????????????????# # #??????????????? | | ????????????????????# # #??????????????? | | ????????????????????# #@[ #??????????????? | | ????????????????????# #[* #??????????????? | | ????????????????????# # #??????????????? | | ###########?????????# # #??????????????? | | # !#?????????# ###########??????????????? | | # #?????????# ## # ####???????????????? | | # #?????????# #""""""" #???????????????? | | # ] #?????##### " #???????????????? | | # #?????#!! " #???????????????? | | + #?????#!! " ##??????????????? | | # #?????#!! " #??????????????? | | # %% #?????#!! = """#??????????????? | | ###/####/##?????#!! # = "! #???????? | | ??#%#??# #??????#!! # "" #???????? | | ?##!#??# #??????##### " #???????? | | ##==####%############% + ????????? | | %%= *%%* % % #? ????????? | | ![ =############+##+### +?? ????????"T | | ##########?????????# ?# #???? ????????"" | | ???????????????????# ?# #????? ??????????? | | ???????????????????# "" ## #?????????????????? | | ???????????????????# Y" # ?????????????????? | | ???????????????????# "" # ! ????????????????? | | ???????????????????# # ##???????????????? | | ???????????????????######## #????????????????? | +----------------------------------------------------+ Best States ------------- Heat Dissipation 53 Energy Generation 14 Energy Capacity 275 Matter Stores 330 Matter Capacity 350 Sight Range 16 Terrain Scan Range 16 Terrain Scan Density 10 Armor Coverage 150 Resistance: KI 20 Resistance: TH 20 Resistance: EX 20 Resistance: EM 20 Resistance: I 20 Resistance: S 20 Resistance: P 20 Evasion (%) 54 Offensive Hacking 10 Item Schematics ----------------- None Robot Schematics ------------------ None Fabricated ------------ Nothing Alien Tech Used ----------------- None Achievements -------------- None Challenges ------------ None RPGLIKE | -11 -10 -10 -10 -9 -8 --------- Run | Yrd Mat Min Exi Min Mat Levels Raised 7 | . . 1 . 2 4 XP Earned 15089 | 4000 1090 1573 200 3015 5211 XP Spent 3100 | 1750 800 . . 550 . Upgrades 7 | 4 1 . . 2 . Propulsion Slot 2 | 1 1 . . . . Utility Slot 1 | 1 . . . . . Weapon Slot 1 | 1 . . . . . Heat Dissipation 1 | . . . . 1 . Inventory Capacity 2 | 1 . . . 1 . Protomatter Created 309 | . 75 30 . 130 74 Integrity Restored 514 | . 62 24 . 308 120 Core 421 | . 38 24 . 239 120 Parts 93 | . 24 . . 69 . Protomatter Decayed 84 | . 51 . . 24 9 Game ------ Seed DirtyMassEdition Manual? 0 Play Time 00:32:26 Cumulative 525.2 hours Start 2024.08.24 @ 22:20:03 End 2024.08.24 @ 22:57:59 Sessions 1 Manual Loads 0 Difficulty Adventurer Special Mode Winter2019/RPGLIKE Game No. 40 Rogue 9 Adventurer 17 Explorer 14 Win Type - Total 30 Types 18/2/6/1/1/2/0/0/0 Lore% 70 Gallery% 85 Achievement% 75 Wizard Run 0 Options --------- Layout 0 ASCII 0 Keyboard 0 Movement Mouse Keybinds 0 Fullscreen 2 Font 36/Terminus++ Map View 76x50 Zoom Use 0% Tactical HUD 1 Map Filters NONE Filters NONE Steam 0 RUN: 85fa1bd4-5858-44f5-87e0-9cc086c324a5